[Event "Titled Tuesday Blitz November 22 Late 2022"]
[White "Jimenez Almeida, Luis David"]
[Black "Korchmar, Vasiliy"]
[WhiteFideId "22242244"]
[BlackFideId "24131750"]
[WhiteElo "2469"]
[BlackElo "2728"]
[Result "1-0"]
[Round "03"]
[TimeControl "180+1"]
[Date "2022.11.23"]
[WhiteClock "0:00:08"]
[BlackClock "0:00:02"]

1. e4 {[%clk 0:03:00]}  c5 {[%clk 0:03:00]} 2. Nc3 {[%clk 0:03:00]}  d6 {[%clk 0:03:00]} 3. Nge2 {[%clk 0:03:00]}  Nc6 {[%clk 0:02:59]} 4. d4 {[%clk 0:02:59]}  cxd4 {[%clk 0:03:00]} 5. Nxd4 {[%clk 0:03:00]}  Nf6 {[%clk 0:03:01]} 6. Bg5 {[%clk 0:02:59]}  Bd7 {[%clk 0:03:01]} 7. Qd2 {[%clk 0:02:59]}  a6 {[%clk 0:03:02]} 8. O-O-O {[%clk 0:02:57]}  e6 {[%clk 0:03:02]} 9. f4 {[%clk 0:02:56]}  Be7 {[%clk 0:03:02]} 10. h4 {[%clk 0:02:55]}  b5 {[%clk 0:03:02]} 11. Nxc6 {[%clk 0:02:52]}  Bxc6 {[%clk 0:03:03]} 12. Bd3 {[%clk 0:02:51]}  b4 {[%clk 0:03:02]} 13. Bxf6 {[%clk 0:02:51]}  Bxf6 {[%clk 0:02:59]} 14. Ne2 {[%clk 0:02:52]}  a5 {[%clk 0:02:32]} 15. g4 {[%clk 0:02:50]}  Qb6 {[%clk 0:02:27]} 16. g5 {[%clk 0:02:42]}  Be7 {[%clk 0:02:27]} 17. Kb1 {[%clk 0:02:33]}  a4 {[%clk 0:02:27]} 18. h5 {[%clk 0:02:18]}  a3 {[%clk 0:02:25]} 19. b3 {[%clk 0:02:14]}  f5 {[%clk 0:02:15]} 20. exf5 {[%clk 0:01:55]}  Bxh1 {[%clk 0:02:13]} 21. Rxh1 {[%clk 0:01:55]}  exf5 {[%clk 0:01:55]} 22. Bxf5 {[%clk 0:01:56]}  O-O {[%clk 0:01:53]} 23. Qd3 {[%clk 0:01:43]}  h6 {[%clk 0:01:27]} 24. gxh6 {[%clk 0:01:35]}  gxh6 {[%clk 0:01:28]} 25. Nd4 {[%clk 0:01:02]}  Bf6 {[%clk 0:01:19]} 26. Be6+ {[%clk 0:01:01]}  Kh8 {[%clk 0:01:16]} 27. Qg6 {[%clk 0:00:53]}  Bg7 {[%clk 0:01:14]} 28. Nf5 {[%clk 0:00:49]}  Qc7 {[%clk 0:00:40]} 29. Rg1 {[%clk 0:00:41]}  Ra7 {[%clk 0:00:25]} 30. Bc4 {[%clk 0:00:14]}  d5 {[%clk 0:00:24]} 31. Bd3 {[%clk 0:00:13]}  Qc3 {[%clk 0:00:24]} 32. Kc1 {[%clk 0:00:14]}  Qa1+ {[%clk 0:00:07]} 33. Kd2 {[%clk 0:00:14]}  Qc3+ {[%clk 0:00:08]} 34. Kd1 {[%clk 0:00:14]}  Raf7 {[%clk 0:00:04]} 35. Nd6 {[%clk 0:00:11]}  Qa1+ {[%clk 0:00:04]} 36. Ke2 {[%clk 0:00:10]}  Re7+ {[%clk 0:00:04]} 37. Kf3 {[%clk 0:00:09]}  Qd4 {[%clk 0:00:02]} 38. Qh7# {[%clk 0:00:08]} 1-0


[Site "https://www.chess.com"]

[Event "Titled Tuesday Blitz November 22 Late 2022"]
[White "Khandelwal, Ankush"]
[Black "Lobanov, Sergei"]
[WhiteFideId "413470"]
[BlackFideId "24183750"]
[WhiteElo "2271"]
[BlackElo "2510"]
[Result "1/2-1/2"]
[Round "03"]
[TimeControl "180+1"]
[Date "2022.11.22"]
[WhiteClock "0:00:16"]
[BlackClock "0:00:17"]

1. e4 {[%clk 0:03:00]}  e5 {[%clk 0:02:59]} 2. Nf3 {[%clk 0:03:00]}  Nc6 {[%clk 0:03:00]} 3. d4 {[%clk 0:03:00]}  exd4 {[%clk 0:02:59]} 4. Nxd4 {[%clk 0:03:01]}  Nf6 {[%clk 0:02:59]} 5. Nxc6 {[%clk 0:03:00]}  bxc6 {[%clk 0:03:00]} 6. e5 {[%clk 0:03:01]}  Qe7 {[%clk 0:03:00]} 7. Qe2 {[%clk 0:03:00]}  Nd5 {[%clk 0:03:01]} 8. g3 {[%clk 0:03:01]}  g6 {[%clk 0:02:58]} 9. c4 {[%clk 0:03:00]}  Ba6 {[%clk 0:02:57]} 10. b3 {[%clk 0:03:01]}  Bg7 {[%clk 0:02:56]} 11. Bb2 {[%clk 0:03:01]}  O-O {[%clk 0:02:56]} 12. Bg2 {[%clk 0:03:01]}  Rae8 {[%clk 0:02:53]} 13. O-O {[%clk 0:03:01]}  Bxe5 {[%clk 0:02:53]} 14. Qxe5 {[%clk 0:03:01]}  Qxe5 {[%clk 0:02:54]} 15. Bxe5 {[%clk 0:03:02]}  Rxe5 {[%clk 0:02:55]} 16. cxd5 {[%clk 0:03:02]}  Bxf1 {[%clk 0:02:55]} 17. Kxf1 {[%clk 0:03:03]}  cxd5 {[%clk 0:02:51]} 18. Na3 {[%clk 0:03:01]}  c6 {[%clk 0:02:47]} 19. Nc2 {[%clk 0:03:00]}  a5 {[%clk 0:02:35]} 20. Rd1 {[%clk 0:02:59]}  Rfe8 {[%clk 0:02:30]} 21. Bf3 {[%clk 0:02:50]}  Ra8 {[%clk 0:02:22]} 22. Rd4 {[%clk 0:02:49]}  Kf8 {[%clk 0:02:23]} 23. Ne3 {[%clk 0:02:40]}  Ree8 {[%clk 0:02:21]} 24. Ke2 {[%clk 0:02:38]}  Ke7 {[%clk 0:02:20]} 25. Kd3 {[%clk 0:02:35]}  Kd6 {[%clk 0:02:18]} 26. Nxd5 {[%clk 0:02:19]}  cxd5 {[%clk 0:02:09]} 27. Bxd5 {[%clk 0:02:20]}  Kc7 {[%clk 0:01:37]} 28. Bxa8 {[%clk 0:02:20]}  Rxa8 {[%clk 0:01:38]} 29. Kc4 {[%clk 0:02:13]}  Re8 {[%clk 0:01:34]} 30. Rf4 {[%clk 0:01:01]}  f5 {[%clk 0:01:20]} 31. Kb5 {[%clk 0:01:01]}  d5 {[%clk 0:00:57]} 32. Kxa5 {[%clk 0:01:00]}  Ra8+ {[%clk 0:00:57]} 33. Kb5 {[%clk 0:01:00]}  Rxa2 {[%clk 0:00:57]} 34. Kc5 {[%clk 0:01:01]}  Rd2 {[%clk 0:00:53]} 35. b4 {[%clk 0:00:55]}  d4 {[%clk 0:00:47]} 36. Rxd4 {[%clk 0:00:37]}  Rxf2 {[%clk 0:00:44]} 37. Rh4 {[%clk 0:00:37]}  h5 {[%clk 0:00:41]} 38. b5 {[%clk 0:00:36]}  Rc2+ {[%clk 0:00:40]} 39. Kd5 {[%clk 0:00:31]}  Re2 {[%clk 0:00:38]} 40. Kc5 {[%clk 0:00:29]}  Re5+ {[%clk 0:00:38]} 41. Kc4 {[%clk 0:00:28]}  Kb6 {[%clk 0:00:37]} 42. Rd4 {[%clk 0:00:26]}  Rc5+ {[%clk 0:00:35]} 43. Kd3 {[%clk 0:00:24]}  Kxb5 {[%clk 0:00:35]} 44. Rd6 {[%clk 0:00:24]}  Rc6 {[%clk 0:00:33]} 45. Rd8 {[%clk 0:00:23]}  Re6 {[%clk 0:00:32]} 46. Rc8 {[%clk 0:00:22]}  Kb6 {[%clk 0:00:32]} 47. Kd4 {[%clk 0:00:22]}  Kb7 {[%clk 0:00:32]} 48. Rc2 {[%clk 0:00:22]}  h4 {[%clk 0:00:31]} 49. Kd5 {[%clk 0:00:20]}  Re4 {[%clk 0:00:30]} 50. gxh4 {[%clk 0:00:18]}  Rxh4 {[%clk 0:00:30]} 51. Rg2 {[%clk 0:00:18]}  f4 {[%clk 0:00:19]} 52. Ke4 {[%clk 0:00:17]}  Kc7 {[%clk 0:00:16]} 53. Rxg6 {[%clk 0:00:16]}  Rxh2 {[%clk 0:00:17]} 54. Kxf4 {[%clk 0:00:16]} 1/2-1/2


[Site "https://www.chess.com"]

[Event "Titled Tuesday Blitz November 22 Late 2022"]
[White "Khater, Sherif"]
[Black "Hardaway, Brewington"]
[WhiteFideId "2034280"]
[BlackFideId "30941849"]
[WhiteElo "2486"]
[BlackElo "2789"]
[Result "0-1"]
[Round "03"]
[TimeControl "180+1"]
[Date "2022.11.23"]
[WhiteClock "0:00:45"]
[BlackClock "0:00:40"]

1. b3 {[%clk 0:03:00]}  Nf6 {[%clk 0:02:59]} 2. Bb2 {[%clk 0:03:01]}  e6 {[%clk 0:03:00]} 3. e3 {[%clk 0:03:01]}  Be7 {[%clk 0:03:00]} 4. Nf3 {[%clk 0:03:02]}  O-O {[%clk 0:03:01]} 5. d4 {[%clk 0:03:02]}  b6 {[%clk 0:03:01]} 6. Nbd2 {[%clk 0:03:03]}  Bb7 {[%clk 0:03:02]} 7. Bd3 {[%clk 0:03:04]}  c5 {[%clk 0:03:02]} 8. Qe2 {[%clk 0:03:02]}  Nc6 {[%clk 0:03:02]} 9. a3 {[%clk 0:03:03]}  Rc8 {[%clk 0:02:58]} 10. O-O {[%clk 0:03:02]}  d5 {[%clk 0:02:54]} 11. c4 {[%clk 0:03:02]}  cxd4 {[%clk 0:02:54]} 12. Nxd4 {[%clk 0:03:02]}  dxc4 {[%clk 0:02:50]} 13. Bxc4 {[%clk 0:02:53]}  Bc5 {[%clk 0:02:39]} 14. Nxc6 {[%clk 0:02:41]}  Bxc6 {[%clk 0:02:39]} 15. Nf3 {[%clk 0:02:35]}  Qe7 {[%clk 0:02:29]} 16. b4 {[%clk 0:02:31]}  Bd6 {[%clk 0:02:28]} 17. Ba6 {[%clk 0:02:31]}  Bb7 {[%clk 0:02:26]} 18. Nd4 {[%clk 0:02:29]}  Nd5 {[%clk 0:02:16]} 19. Rac1 {[%clk 0:02:19]}  Bb8 {[%clk 0:02:03]} 20. Bxb7 {[%clk 0:02:16]}  Qxb7 {[%clk 0:02:02]} 21. Qg4 {[%clk 0:02:16]}  Nf6 {[%clk 0:01:56]} 22. Qh3 {[%clk 0:02:07]}  Qe4 {[%clk 0:01:40]} 23. b5 {[%clk 0:01:58]}  Ng4 {[%clk 0:01:32]} 24. g3 {[%clk 0:01:46]}  Ne5 {[%clk 0:01:30]} 25. Qg2 {[%clk 0:01:28]}  Qxg2+ {[%clk 0:01:29]} 26. Kxg2 {[%clk 0:01:29]}  Nd3 {[%clk 0:01:29]} 27. Rb1 {[%clk 0:01:24]}  Nxb2 {[%clk 0:01:29]} 28. Rxb2 {[%clk 0:01:25]}  Be5 {[%clk 0:01:28]} 29. Rd1 {[%clk 0:01:22]}  Rc5 {[%clk 0:01:22]} 30. Rb4 {[%clk 0:01:16]}  g6 {[%clk 0:01:07]} 31. Nc6 {[%clk 0:01:07]}  a5 {[%clk 0:01:05]} 32. Re4 {[%clk 0:00:53]}  Bf6 {[%clk 0:01:04]} 33. a4 {[%clk 0:00:53]}  Kg7 {[%clk 0:01:04]} 34. Rd7 {[%clk 0:00:52]}  h5 {[%clk 0:00:59]} 35. Rxe6 {[%clk 0:00:50]}  Rc4 {[%clk 0:00:56]} 36. Nd4 {[%clk 0:00:49]}  Bxd4 {[%clk 0:00:43]} 37. Rxd4 {[%clk 0:00:49]}  Rxd4 {[%clk 0:00:43]} 38. exd4 {[%clk 0:00:45]}  fxe6 {[%clk 0:00:40]} 0-1


[Site "https://www.chess.com"]

[Event "Titled Tuesday Blitz November 22 Late 2022"]
[White "Kollars, Dmitrij"]
[Black "Daggupati, Balaji"]
[WhiteFideId "12909572"]
[BlackFideId "2090759"]
[WhiteElo "2951"]
[BlackElo "2684"]
[Result "1-0"]
[Round "03"]
[TimeControl "180+1"]
[Date "2022.11.23"]
[WhiteClock "0:02:43"]
[BlackClock "0:02:35"]

1. Nf3 {[%clk 0:02:57]}  d5 {[%clk 0:03:00]} 2. d4 {[%clk 0:02:55]}  Nf6 {[%clk 0:02:59]} 3. c4 {[%clk 0:02:56]}  dxc4 {[%clk 0:03:00]} 4. e3 {[%clk 0:02:55]}  e6 {[%clk 0:03:00]} 5. Bxc4 {[%clk 0:02:55]}  a6 {[%clk 0:03:01]} 6. O-O {[%clk 0:02:56]}  Be7 {[%clk 0:03:02]} 7. Re1 {[%clk 0:02:50]}  b5 {[%clk 0:03:00]} 8. Bf1 {[%clk 0:02:50]}  Bb7 {[%clk 0:03:00]} 9. a4 {[%clk 0:02:45]}  b4 {[%clk 0:02:54]} 10. b3 {[%clk 0:02:45]}  O-O {[%clk 0:02:54]} 11. Bb2 {[%clk 0:02:46]}  c5 {[%clk 0:02:45]} 12. Nbd2 {[%clk 0:02:46]}  cxd4 {[%clk 0:02:43]} 13. Nxd4 {[%clk 0:02:47]}  Nc6 {[%clk 0:02:43]} 14. Rc1 {[%clk 0:02:43]}  Nxd4 {[%clk 0:02:38]} 15. Bxd4 {[%clk 0:02:44]}  Qc8 {[%clk 0:02:35]} 16. Rxc8 {[%clk 0:02:43]} 1-0


[Site "https://www.chess.com"]

[Event "Titled Tuesday Blitz November 22 Late 2022"]
[White "Kopylov, Alexander A."]
[Black "Caruana, Fabiano"]
[WhiteFideId "4164857"]
[BlackFideId "2020009"]
[WhiteElo "2436"]
[BlackElo "2847"]
[Result "1/2-1/2"]
[Round "03"]
[TimeControl "180+1"]
[Date "2022.11.22"]
[WhiteClock "0:00:35"]
[BlackClock "0:00:54"]

1. e4 {[%clk 0:03:00]}  e5 {[%clk 0:02:58]} 2. Nf3 {[%clk 0:03:00]}  Nf6 {[%clk 0:02:59]} 3. Nc3 {[%clk 0:03:01]}  Nc6 {[%clk 0:02:59]} 4. h3 {[%clk 0:03:00]}  Bb4 {[%clk 0:02:57]} 5. Nd5 {[%clk 0:02:59]}  Bc5 {[%clk 0:02:56]} 6. c3 {[%clk 0:03:00]}  O-O {[%clk 0:02:54]} 7. d4 {[%clk 0:02:58]}  exd4 {[%clk 0:02:51]} 8. cxd4 {[%clk 0:02:59]}  Nxd5 {[%clk 0:02:36]} 9. dxc5 {[%clk 0:02:51]}  Nf6 {[%clk 0:02:36]} 10. Bg5 {[%clk 0:02:50]}  h6 {[%clk 0:02:35]} 11. Bh4 {[%clk 0:02:47]}  Qe7 {[%clk 0:02:27]} 12. Bd3 {[%clk 0:02:44]}  g5 {[%clk 0:02:19]} 13. Nxg5 {[%clk 0:02:41]}  hxg5 {[%clk 0:02:20]} 14. Bxg5 {[%clk 0:02:41]}  Qe5 {[%clk 0:02:20]} 15. f4 {[%clk 0:02:21]}  Qxb2 {[%clk 0:02:18]} 16. O-O {[%clk 0:02:07]}  Nh7 {[%clk 0:01:48]} 17. Bh6 {[%clk 0:02:05]}  d6 {[%clk 0:01:36]} 18. e5 {[%clk 0:02:01]}  Bd7 {[%clk 0:00:58]} 19. Bxh7+ {[%clk 0:01:23]}  Kxh7 {[%clk 0:00:59]} 20. Qh5 {[%clk 0:01:22]}  Rh8 {[%clk 0:00:53]} 21. Qxf7+ {[%clk 0:00:36]}  Kxh6 {[%clk 0:00:51]} 22. Qf6+ {[%clk 0:00:34]}  Kh7 {[%clk 0:00:52]} 23. Qf7+ {[%clk 0:00:34]}  Kh6 {[%clk 0:00:52]} 24. Qf6+ {[%clk 0:00:34]}  Kh7 {[%clk 0:00:53]} 25. Qf7+ {[%clk 0:00:35]}  Kh6 {[%clk 0:00:54]} 1/2-1/2


[Site "https://www.chess.com"]

[Event "Titled Tuesday Blitz November 22 Late 2022"]
[White "Kravtsiv, Martyn"]
[Black "Garcia Ramos, Daniel"]
[WhiteFideId "14113147"]
[BlackFideId "32010311"]
[WhiteElo "2833"]
[BlackElo "2635"]
[Result "1-0"]
[Round "03"]
[TimeControl "180+1"]
[Date "2022.11.23"]
[WhiteClock "0:00:18"]
[BlackClock "0:00:01"]

1. e4 {[%clk 0:02:57]}  c6 {[%clk 0:02:58]} 2. Nf3 {[%clk 0:02:57]}  d5 {[%clk 0:02:58]} 3. d3 {[%clk 0:02:57]}  Qc7 {[%clk 0:02:58]} 4. Nc3 {[%clk 0:02:56]}  dxe4 {[%clk 0:02:56]} 5. Nxe4 {[%clk 0:02:57]}  Nf6 {[%clk 0:02:56]} 6. Qe2 {[%clk 0:02:57]}  Nxe4 {[%clk 0:02:55]} 7. Qxe4 {[%clk 0:02:58]}  Nd7 {[%clk 0:02:55]} 8. Bf4 {[%clk 0:02:59]}  Qa5+ {[%clk 0:02:53]} 9. Bd2 {[%clk 0:02:54]}  Qd5 {[%clk 0:02:53]} 10. Qxd5 {[%clk 0:02:48]}  cxd5 {[%clk 0:02:53]} 11. d4 {[%clk 0:02:49]}  a6 {[%clk 0:02:51]} 12. O-O-O {[%clk 0:02:45]}  e6 {[%clk 0:02:52]} 13. h4 {[%clk 0:02:44]}  h6 {[%clk 0:02:51]} 14. Bd3 {[%clk 0:02:42]}  Be7 {[%clk 0:02:50]} 15. g4 {[%clk 0:02:41]}  b5 {[%clk 0:02:50]} 16. g5 {[%clk 0:02:39]}  Bb7 {[%clk 0:02:47]} 17. g6 {[%clk 0:02:26]}  O-O {[%clk 0:02:43]} 18. Rde1 {[%clk 0:02:08]}  Bf6 {[%clk 0:02:10]} 19. Rh3 {[%clk 0:02:00]}  Rae8 {[%clk 0:01:48]} 20. Ng5 {[%clk 0:01:59]}  fxg6 {[%clk 0:01:12]} 21. Nxe6 {[%clk 0:01:58]}  Rxe6 {[%clk 0:00:56]} 22. Rxe6 {[%clk 0:01:56]}  Bxd4 {[%clk 0:00:57]} 23. Re7 {[%clk 0:01:36]}  Bc8 {[%clk 0:00:57]} 24. Rh1 {[%clk 0:01:32]}  Ne5 {[%clk 0:00:54]} 25. Be2 {[%clk 0:01:26]}  Rxf2 {[%clk 0:00:41]} 26. Re8+ {[%clk 0:01:19]}  Kh7 {[%clk 0:00:40]} 27. Rxc8 {[%clk 0:01:03]}  Rxe2 {[%clk 0:00:40]} 28. Re1 {[%clk 0:01:03]}  Rxe1+ {[%clk 0:00:38]} 29. Bxe1 {[%clk 0:01:04]}  Nf3 {[%clk 0:00:28]} 30. Bg3 {[%clk 0:01:03]}  g5 {[%clk 0:00:25]} 31. hxg5 {[%clk 0:01:02]}  Be3+ {[%clk 0:00:24]} 32. Kd1 {[%clk 0:01:01]}  Bxg5 {[%clk 0:00:25]} 33. Rc5 {[%clk 0:00:54]}  Bf6 {[%clk 0:00:11]} 34. Rxd5 {[%clk 0:00:29]}  Bxb2 {[%clk 0:00:11]} 35. Rd6 {[%clk 0:00:29]}  a5 {[%clk 0:00:09]} 36. Rd5 {[%clk 0:00:30]}  b4 {[%clk 0:00:06]} 37. Rxa5 {[%clk 0:00:30]}  g5 {[%clk 0:00:06]} 38. Rb5 {[%clk 0:00:26]}  Bc3 {[%clk 0:00:05]} 39. Bd6 {[%clk 0:00:25]}  g4 {[%clk 0:00:04]} 40. Bxb4 {[%clk 0:00:22]}  Bxb4 {[%clk 0:00:03]} 41. Rxb4 {[%clk 0:00:22]}  h5 {[%clk 0:00:03]} 42. Ke2 {[%clk 0:00:22]}  Ne5 {[%clk 0:00:02]} 43. Re4 {[%clk 0:00:18]}  Nc6 {[%clk 0:00:01]} 44. a4 {[%clk 0:00:18]} 1-0


[Site "https://www.chess.com"]

[Event "Titled Tuesday Blitz November 22 Late 2022"]
[White "Lashkin, Jegor"]
[Black "Gritsenko, Nikolai"]
[WhiteFideId "13907808"]
[BlackFideId "14112493"]
[WhiteElo "2895"]
[BlackElo "2663"]
[Result "1-0"]
[Round "03"]
[TimeControl "180+1"]
[Date "2022.11.23"]
[WhiteClock "0:00:26"]
[BlackClock "0:00:14"]

1. e4 {[%clk 0:03:00]}  c5 {[%clk 0:02:58]} 2. Nf3 {[%clk 0:03:00]}  Nf6 {[%clk 0:02:58]} 3. e5 {[%clk 0:03:00]}  Nd5 {[%clk 0:02:58]} 4. Nc3 {[%clk 0:03:01]}  e6 {[%clk 0:02:58]} 5. Ne4 {[%clk 0:02:59]}  Nc6 {[%clk 0:02:48]} 6. c4 {[%clk 0:02:59]}  Nc7 {[%clk 0:02:38]} 7. d4 {[%clk 0:02:58]}  cxd4 {[%clk 0:02:37]} 8. Nd6+ {[%clk 0:02:54]}  Bxd6 {[%clk 0:02:33]} 9. exd6 {[%clk 0:02:55]}  Na6 {[%clk 0:02:25]} 10. Bd3 {[%clk 0:02:45]}  Qa5+ {[%clk 0:02:08]} 11. Bd2 {[%clk 0:02:42]}  Qc5 {[%clk 0:02:08]} 12. Bf4 {[%clk 0:02:20]}  O-O {[%clk 0:02:04]} 13. O-O {[%clk 0:02:19]}  e5 {[%clk 0:01:42]} 14. Bg3 {[%clk 0:01:48]}  f5 {[%clk 0:01:40]} 15. a3 {[%clk 0:01:27]}  e4 {[%clk 0:01:02]} 16. b4 {[%clk 0:01:26]}  Naxb4 {[%clk 0:00:59]} 17. axb4 {[%clk 0:01:26]}  Nxb4 {[%clk 0:00:53]} 18. Bxe4 {[%clk 0:01:25]}  fxe4 {[%clk 0:00:52]} 19. Nxd4 {[%clk 0:01:26]}  b6 {[%clk 0:00:40]} 20. Nb5 {[%clk 0:01:11]}  Ba6 {[%clk 0:00:32]} 21. Nc7 {[%clk 0:00:39]}  Bxc4 {[%clk 0:00:30]} 22. Rc1 {[%clk 0:00:38]}  Rac8 {[%clk 0:00:27]} 23. Qg4 {[%clk 0:00:38]}  b5 {[%clk 0:00:23]} 24. Qxd7 {[%clk 0:00:36]}  Qc6 {[%clk 0:00:17]} 25. Qg4 {[%clk 0:00:31]}  a5 {[%clk 0:00:16]} 26. Be5 {[%clk 0:00:27]}  Rxc7 {[%clk 0:00:14]} 27. dxc7 {[%clk 0:00:26]}  Qg6 {[%clk 0:00:14]} 28. c8=Q {[%clk 0:00:26]} 1-0


[Site "https://www.chess.com"]

[Event "Titled Tuesday Blitz November 22 Late 2022"]
[White "Lewtak, Damian"]
[Black "Grot, Blazej"]
[WhiteFideId "1141724"]
[BlackFideId "21835845"]
[WhiteElo "2329"]
[BlackElo "1822"]
[Result "1-0"]
[Round "03"]
[TimeControl "180+1"]
[Date "2022.11.23"]
[WhiteClock "0:01:27"]
[BlackClock "0:00:16"]

1. e4 {[%clk 0:03:00]}  d6 {[%clk 0:02:58]} 2. Nf3 {[%clk 0:03:01]}  Nf6 {[%clk 0:02:56]} 3. c3 {[%clk 0:03:02]}  e5 {[%clk 0:02:55]} 4. Bd3 {[%clk 0:03:01]}  Nbd7 {[%clk 0:02:55]} 5. O-O {[%clk 0:03:01]}  c6 {[%clk 0:02:56]} 6. Bc2 {[%clk 0:03:01]}  Qc7 {[%clk 0:02:56]} 7. d4 {[%clk 0:03:01]}  a5 {[%clk 0:02:57]} 8. Re1 {[%clk 0:03:01]}  Be7 {[%clk 0:02:57]} 9. Nbd2 {[%clk 0:03:02]}  O-O {[%clk 0:02:57]} 10. Nf1 {[%clk 0:03:02]}  Re8 {[%clk 0:02:58]} 11. Ng3 {[%clk 0:03:03]}  Bf8 {[%clk 0:02:58]} 12. Nf5 {[%clk 0:03:03]}  g6 {[%clk 0:02:56]} 13. Nh6+ {[%clk 0:03:03]}  Kg7 {[%clk 0:02:38]} 14. h3 {[%clk 0:03:00]}  Ng8 {[%clk 0:02:27]} 15. Nxg8 {[%clk 0:02:58]}  Kxg8 {[%clk 0:02:27]} 16. Nh2 {[%clk 0:02:56]}  Bg7 {[%clk 0:02:27]} 17. Ng4 {[%clk 0:02:56]}  Qb6 {[%clk 0:02:14]} 18. Qf3 {[%clk 0:02:43]}  h5 {[%clk 0:01:42]} 19. Nh6+ {[%clk 0:02:37]}  Bxh6 {[%clk 0:01:42]} 20. Bxh6 {[%clk 0:02:38]}  exd4 {[%clk 0:01:43]} 21. e5 {[%clk 0:02:33]}  dxe5 {[%clk 0:01:32]} 22. Bb3 {[%clk 0:02:29]}  Re7 {[%clk 0:01:24]} 23. Rxe5 {[%clk 0:02:28]}  Qd8 {[%clk 0:00:42]} 24. Re4 {[%clk 0:01:28]}  Rxe4 {[%clk 0:00:19]} 25. Qxf7+ {[%clk 0:01:26]}  Kh8 {[%clk 0:00:16]} 26. Qg7# {[%clk 0:01:27]} 1-0


[Site "https://www.chess.com"]

[Event "Titled Tuesday Blitz November 22 Late 2022"]
[White "Lopez Gracia, Fernando"]
[Black "Todev, Simeon"]
[WhiteFideId "2207184"]
[BlackFideId "2925133"]
[WhiteElo "2455"]
[BlackElo "1938"]
[Result "1-0"]
[Round "03"]
[TimeControl "180+1"]
[Date "2022.11.23"]
[WhiteClock "0:00:20"]
[BlackClock "0:00:01"]

1. c4 {[%clk 0:03:00]}  e5 {[%clk 0:02:58]} 2. g3 {[%clk 0:03:01]}  c6 {[%clk 0:02:55]} 3. d4 {[%clk 0:02:56]}  exd4 {[%clk 0:02:54]} 4. Qxd4 {[%clk 0:02:56]}  d5 {[%clk 0:02:54]} 5. Bg2 {[%clk 0:02:52]}  Nf6 {[%clk 0:02:53]} 6. Nc3 {[%clk 0:02:50]}  dxc4 {[%clk 0:02:51]} 7. Qxc4 {[%clk 0:02:50]}  Be6 {[%clk 0:02:50]} 8. Qa4 {[%clk 0:02:44]}  Nbd7 {[%clk 0:02:48]} 9. Bf4 {[%clk 0:02:44]}  Be7 {[%clk 0:02:46]} 10. Rd1 {[%clk 0:02:43]}  Qb6 {[%clk 0:02:43]} 11. Qc2 {[%clk 0:02:40]}  Ng4 {[%clk 0:02:34]} 12. e4 {[%clk 0:02:33]}  Bc5 {[%clk 0:02:32]} 13. Nh3 {[%clk 0:02:31]}  h6 {[%clk 0:02:28]} 14. O-O {[%clk 0:02:26]}  Be7 {[%clk 0:02:25]} 15. Bd6 {[%clk 0:02:20]}  Bxd6 {[%clk 0:02:23]} 16. Rxd6 {[%clk 0:02:21]}  O-O {[%clk 0:02:24]} 17. Nf4 {[%clk 0:02:19]}  Nc5 {[%clk 0:02:15]} 18. Ncd5 {[%clk 0:02:11]}  Bxd5 {[%clk 0:01:57]} 19. Nxd5 {[%clk 0:02:12]}  Qb5 {[%clk 0:01:15]} 20. Nc7 {[%clk 0:02:10]}  Qa5 {[%clk 0:01:10]} 21. Nxa8 {[%clk 0:02:07]}  Rxa8 {[%clk 0:01:11]} 22. a3 {[%clk 0:01:59]}  Ne6 {[%clk 0:01:08]} 23. Bh3 {[%clk 0:01:54]}  Qh5 {[%clk 0:01:02]} 24. Kg2 {[%clk 0:01:40]}  Nxh2 {[%clk 0:00:42]} 25. Bxe6 {[%clk 0:01:25]}  Nxf1 {[%clk 0:00:40]} 26. Bh3 {[%clk 0:01:14]}  Re8 {[%clk 0:00:22]} 27. Qd1 {[%clk 0:01:14]}  Qe5 {[%clk 0:00:19]} 28. Kxf1 {[%clk 0:01:12]}  Qxe4 {[%clk 0:00:19]} 29. Bg2 {[%clk 0:01:12]}  Qf5 {[%clk 0:00:18]} 30. Rd8 {[%clk 0:01:10]}  Rxd8 {[%clk 0:00:15]} 31. Qxd8+ {[%clk 0:01:11]}  Kh7 {[%clk 0:00:15]} 32. Qd1 {[%clk 0:01:06]}  Qb5+ {[%clk 0:00:15]} 33. Qe2 {[%clk 0:01:05]}  Qc5 {[%clk 0:00:15]} 34. Kg1 {[%clk 0:01:05]}  Qc1+ {[%clk 0:00:14]} 35. Kh2 {[%clk 0:01:05]}  Qg5 {[%clk 0:00:15]} 36. Qd3+ {[%clk 0:01:04]}  Kg8 {[%clk 0:00:13]} 37. Bf3 {[%clk 0:01:02]}  g6 {[%clk 0:00:12]} 38. Kg2 {[%clk 0:01:02]}  Qf6 {[%clk 0:00:13]} 39. b4 {[%clk 0:01:01]}  Qe7 {[%clk 0:00:10]} 40. Qe4 {[%clk 0:01:01]}  Qd6 {[%clk 0:00:08]} 41. Qe8+ {[%clk 0:00:58]}  Kg7 {[%clk 0:00:09]} 42. Qe3 {[%clk 0:00:59]}  a6 {[%clk 0:00:08]} 43. Qc3+ {[%clk 0:00:59]}  Kh7 {[%clk 0:00:06]} 44. Qc5 {[%clk 0:00:59]}  Qd7 {[%clk 0:00:07]} 45. Qb6 {[%clk 0:00:59]}  g5 {[%clk 0:00:07]} 46. g4 {[%clk 0:00:56]}  h5 {[%clk 0:00:07]} 47. gxh5 {[%clk 0:00:25]}  g4 {[%clk 0:00:06]} 48. Be2 {[%clk 0:00:26]}  Qd5+ {[%clk 0:00:05]} 49. Kg1 {[%clk 0:00:26]}  Qe4 {[%clk 0:00:05]} 50. Qe3 {[%clk 0:00:24]}  Qb1+ {[%clk 0:00:04]} 51. Kg2 {[%clk 0:00:24]}  Qb2 {[%clk 0:00:04]} 52. Bd3+ {[%clk 0:00:24]}  Kg8 {[%clk 0:00:03]} 53. h6 {[%clk 0:00:20]}  Qf6 {[%clk 0:00:02]} 54. h7+ {[%clk 0:00:20]}  Kg7 {[%clk 0:00:02]} 55. Qe4 {[%clk 0:00:20]}  Qh6 {[%clk 0:00:01]} 56. Qf5 {[%clk 0:00:19]}  Qh3+ {[%clk 0:00:01]} 57. Kg1 {[%clk 0:00:19]}  Qh4 {[%clk 0:00:01]} 58. h8=Q+ {[%clk 0:00:19]}  Kxh8 {[%clk 0:00:01]} 59. Bc4 {[%clk 0:00:20]}  g3 {[%clk 0:00:01]} 60. Qe5+ {[%clk 0:00:20]} 1-0


[Site "https://www.chess.com"]